Cogmind - Beta 11 @@@ ROGUE MODE // 2022.04.10 @ 22:32:26 Player: AlmondRoll Result: Destroyed by B-90 Cyclops with Nova Cannon Performance ------------- Evolutions (8) 4000 Regions Visited (19) 3800 Robots Destroyed (218) 1090 Value Destroyed (10692) 10692 Prototype IDs (57) 1140 Alien Tech Used (1) 200 Bonus (4015) 4015 TOTAL SCORE: 24937 Bonus ------- High Alert Combat Kills 1629 Follower Combat Kills 70 Entered Garrisons 600 Used RIF Installer 1500 Entered DSFs 500 Aligned with FarCom 300 Friendly Fire -584 Cogmind --------- Core Integrity 0/1450 Matter 166/300 Energy 220/220 System Corruption 77% Temperature Cool (9) Movement Core (1000) Ox19 Location -2/Research Parts ------- > --- POWER (3) -------- Mini Fusion Reactor Micro Antimatter Reactor > --- PROPULSION (5) --- (None) > --- UTILITY (12) ----- Coolant Network Large Storage Unit Advanced Signal Interpreter Modified TNC Advanced Targeting Computer Advanced Targeting Computer Advanced Target Analyzer Experimental Core Analyzer Relay Coupler [NC] (31) > --- WEAPON (4) ------- KE Penetrator KE Penetrator KE Penetrator KE Penetrator > --- INVENTORY (15) --- Micro Antimatter Reactor Armored Heavy Treads Experimental Energy Well (600) Experimental Energy Well (600) Experimental Core Analyzer Particle Accelerator Relay Coupler [Grunt] (25) Relay Coupler [Heavy] (12) Heavy Wave Gun Heavy Wave Gun Advanced Remote Datajack Peak State ------------ > --- POWER ------------ Mini Fusion Reactor Light Quantum Reactor Improved Quantum Reactor > --- PROPULSION ------- Advanced Heavy Treads Biometal Heavy Treads > --- UTILITY ---------- Advanced Heat Sink Advanced Heat Sink Large Storage Unit Experimental Energy Well Advanced Signal Interpreter Modified TNC Advanced Target Analyzer Advanced Target Analyzer Experimental Core Analyzer Advanced Kinecellerator Advanced Phase Shifter Relay Coupler [NC] > --- WEAPON ----------- KE Penetrator KE Penetrator KE Penetrator Helical Railgun > --- INVENTORY -------- Light Antimatter Reactor Mini Fusion Reactor Experimental Energy Well Experimental Core Analyzer Particle Accelerator Relay Coupler [Grunt] Relay Coupler [Heavy] Gamma Rifle Gamma Rifle Gamma Rifle Heavy Wave Gun Heavy Wave Gun Helical Railgun Advanced Remote Datajack [Rating: 172] Favorites ----------- Power Light Nuclear Core Engine Backup Power III Power Core Light Nuclear Core Reactor Light Quantum Reactor Propulsion Armored Leg Treads Medium Treads Leg Armored Leg Wheel Compact Wheel Flight Unit Flying Fortress v7 Utility High-capacity Storage Unit Device Advanced Heat Sink Storage High-capacity Storage Unit Processor Advanced Signal Interpreter Hackware System Shield Protection Improved Light Armor Plating Weapon Thermic Laser Energy Gun Thermic Laser Energy Cannon Cooled Phase Cannon Ballistic Gun KE Penetrator Ballistic Cannon Light Cannon Launcher Rocket Array Special Weapon Remote Datajack Impact Weapon Heavy Hammer Piercing Weapon Force Lance Special Melee Weapon Datajack Build | -11 -10 -10 -10 -9 -8 -8 -8 -8 -7 -7 -7 -6 -5 -4 -4 -3 -2 -2 -2 ------- Run | Scr Mat Min Exi Min Mat Gar Mat Gar Fac Low Low Fac Fac Fac DSF Res Res Gar Res Slots Evolved 16 | . . . . . 4 . . . 2 . . 2 2 2 . 2 2 . . Power 1 | . . . . . . . . . . . . . . . . . 1 . . Propulsion 3 | . . . . . 2 . . . . . . . 1 . . . . . . Utility 10 | . . . . . 2 . . . 2 . . 2 1 . . 2 1 . . Weapon 2 | . . . . . . . . . . . . . . 2 . . . . . Parts Attached 294 | 2 7 1 8 . 19 10 . 10 6 4 3 25 26 . 16 34 28 6 89 Power 36 | . . . 1 . 1 2 . . 1 . 2 . 4 . 2 3 4 3 13 Engine 6 | . . . . . 1 1 . . . . . . 3 . . . . . 1 Core 6 | . . . 1 . . 1 . . 1 . 2 . 1 . . . . . . Reactor 24 | . . . . . . . . . . . . . . . 2 3 4 3 12 Propulsion 51 | . 4 . 2 . 10 3 . . . . . 4 2 . 10 2 5 . 9 Treads 23 | . 2 . 2 . 9 1 . . . . . . . . . . . . 9 Leg 23 | . . . . . . . . . . . . 4 2 . 10 2 5 . . Wheel 3 | . 2 . . . . 1 . . . . . . . . . . . . . Hover . | . . . . . . . . . . . . . . . . . . . . Flight 2 | . . . . . 1 1 . . . . . . . . . . . . . Utility 113 | 1 1 1 1 . 6 2 . 2 4 3 1 14 8 . 1 22 13 2 31 Device 65 | 1 . 1 . . 2 . . . 1 2 1 8 3 . 1 17 8 2 18 Storage 9 | . 1 . 1 . . . . . . . . . . . . 2 2 . 3 Processor 17 | . . . . . 1 . . . . 1 . 2 . . . 1 3 . 9 Hackware 18 | . . . . . 2 2 . 2 2 . . 4 4 . . 1 . . 1 Protection 4 | . . . . . 1 . . . 1 . . . 1 . . 1 . . . Artifact . | . . . . . . . . . . . . . . . . . . . . Weapon 94 | 1 2 . 4 . 2 3 . 8 1 1 . 7 12 . 3 7 6 1 36 Energy Gun 21 | . . . . . . . . . . . . . 4 . . 6 3 1 7 Energy Cannon 8 | . . . . . . . . . . . . . 1 . . . . . 7 Ballistic Gun 24 | 1 . . . . . . . . . . . . . . . . 2 . 21 Ballistic Cannon 5 | . 2 . 2 . 1 . . . . . . . . . . . . . . Launcher 8 | . . . . . . . . . . . . 3 3 . . . 1 . 1 Special Weapon 10 | . . . . . . 1 . 4 1 . . 1 2 . . 1 . . . Impact Weapon 14 | . . . 1 . 1 2 . 4 . 1 . 3 2 . . . . . . Slashing Weapon . | . . . . . . . . . . . . . . . . . . . . Piercing Weapon 3 | . . . . . . . . . . . . . . . 3 . . . . Special Melee Weapon 1 | . . . 1 . . . . . . . . . . . . . . . . Unidentified Prototypes 25 | . . . . . 1 . . . . 1 . 2 . . . 3 4 1 13 Corrupted Parts 4 | . . . . . . . . . . . . . . . 1 . . . 3 System Corruption 23 | . . . . . . . . . . . . . . . 1 . . . 22 Parts Lost 89 | . . . . . 1 2 . . . . . 4 7 . 13 6 11 16 29 Power 23 | . . . . . 1 . . . . . . 2 5 . 1 . 3 3 8 Propulsion 20 | . . . . . . 2 . . . . . . . . 6 1 2 4 5 Utility 26 | . . . . . . . . . . . . 1 2 . 3 3 3 5 9 Weapon 20 | . . . . . . . . . . . . 1 . . 3 2 3 4 7 Highest Loss Streak 16 | . . . . . 1 1 . . . . . 4 2 . 10 2 7 16 6 To Critical Strikes . | . . . . . . . . . . . . . . . . . . . . Average Slot Usage (%) 86 | . 100 100 97 100 98 86 63 63 75 75 77 86 97 80 80 94 95 85 74 Engine 2 | . 14 14 1 . 3 8 . . . . . 3 9 . . . . . . Core 4 | . . . 12 14 4 . 9 9 7 7 13 8 . . . . . . . Reactor 2 | . . . . . . . . . . . . . . . 2 8 10 10 9 Treads 10 | . 26 . 25 28 35 21 . . . . . . . . . . . . 8 Leg 6 | . 1 . . . . . . . . . . 11 26 25 22 21 19 17 . Flight 1 | . . . . . . 3 9 9 7 7 7 3 . . . . . . . Device 11 | . 14 14 14 14 10 . . . 7 14 17 12 13 . . 18 26 24 10 Storage 7 | . 14 14 14 14 9 9 9 9 7 7 7 6 5 5 5 4 5 3 4 Processor 7 | . . . . . . 5 . . . 6 7 7 11 10 10 8 14 14 21 Hackware 11 | . . . . . 9 21 27 27 29 15 10 21 17 25 22 12 . . 3 Energy Gun 2 | . . . . . . . . . . . . . 7 . . 14 13 10 . Ballistic Gun 2 | . 17 . . . . . . . . . . . . . . . 1 3 11 Ballistic Cannon 3 | . 10 28 . 28 16 11 . . . . . . . . . . . . . Special Weapon 1 | . . . . . . 2 . 4 7 7 7 4 . . . . . . . Impact Weapon 3 | . . . 12 . 1 . 9 4 7 7 7 5 1 5 3 . . . . Special Melee Weapon 1 | . . . 12 . . . . . . . . . . . . . . . . Naked Turns 31 | . . . . . . . . . . . . . . . . . . 31 . Heaviest Build 128 | 14 32 32 52 52 54 53 48 48 54 53 58 62 65 55 88 91 128 119 117 Greatest Support 150 | 20 40 26 40 40 112 112 50 50 59 59 59 73 80 80 107 90 134 134 150 Greatest Overweight (x) 3 | . 1 1 1 1 . 3 . . . 1 . 2 . . 1 1 1 . . Average Overweight (x) . | . . . . 1 . . . . . . . . . . . . . . . Largest Inventory Capacity 20 | 8 15 15 20 20 20 20 20 20 20 20 20 20 20 20 20 20 20 20 15 Average Capacity 18 | 8 14 15 17 20 20 20 20 20 20 20 20 20 20 20 20 20 20 18 14 Most Carried 20 | 8 15 15 20 20 20 20 20 20 19 20 20 20 20 16 20 20 19 20 15 Average Carried 16 | 5 10 14 15 20 19 19 19 18 16 17 19 18 19 16 19 18 15 17 12 Final Capacity 20 | 8 15 15 20 20 20 20 20 20 20 20 20 20 20 20 20 20 20 5 15 Final Carried 20 | 6 14 15 20 20 20 20 20 18 19 20 20 18 16 16 20 19 18 5 12 Class Distribution -------------------- 28% | Bothacker-Mutant 20% | Hacker-Mutant 19% | Scavenger-Gunner 19% | Mutant 4% | Hacker-Tank 4% | Skirmisher Dominant Class ---------------- Mutant | -10/Materials Mutant | -10/Mines Mutant | -10/Exiles Mutant | -9/Mines Hacker-Mutant | -8/Materials Hacker-Mutant | -8/Garrison Hacker-Mutant | -8/Materials Bothacker-Mutant | -8/Garrison Bothacker-Mutant | -7/Factory Bothacker-Mutant | -7/Lower Caves Bothacker-Mutant | -7/Lower Caves Bothacker-Mutant | -6/Factory Hacker-Mutant | -5/Factory Hacker-Mutant | -4/Factory Hacker-Mutant | -4/DSF Hacker-Tank | -3/Research Scavenger-Gunner | -2/Research Scavenger-Gunner | -2/Garrison Scavenger-Gunner | -2/Research Resources | -11 -10 -10 -10 -9 -8 -8 -8 -8 -7 -7 -7 -6 -5 -4 -4 -3 -2 -2 -2 ----------- Run | Scr Mat Min Exi Min Mat Gar Mat Gar Fac Low Low Fac Fac Fac DSF Res Res Gar Res Matter Collected 6219 | 284 83 17 148 2 504 314 . 56 214 100 38 369 337 . 174 394 346 251 2588 Remotely 26 | . . . . . 26 . . . . . . . . . . . . . . Salvage Created 13446 | 142 89 41 . . 331 349 . 100 193 25 . 1596 1163 . 218 2211 1136 251 5601 Parts 450 | 14 8 . . . 25 16 . 1 7 2 . 25 31 . 4 25 20 6 266 Haulers Intercepted 15 | . . . . . 2 . . . . . . 4 2 . . 2 . . 5 Recyclers Shooed 16 | 1 . 1 . . . . . . . . . 2 1 . . 5 1 . 5 Parts Field Recycled . | . . . . . . . . . . . . . . . . . . . . Retrieved Matter . | . . . . . . . . . . . . . . . . . . . . Parts Self-Destructed 22 | . . . . . . . . . . 4 18 . . . . . . . . Prevented 1 | . . . . . . . . . . . 1 . . . . . . . . Kills | -11 -10 -10 -10 -9 -8 -8 -8 -8 -7 -7 -7 -6 -5 -4 -4 -3 -2 -2 -2 ------- Run | Scr Mat Min Exi Min Mat Gar Mat Gar Fac Low Low Fac Fac Fac DSF Res Res Gar Res Combat Hostiles Destroyed 147 | . 4 1 . . 5 9 . 3 4 1 . 8 22 . 3 18 14 3 52 Melee 9 | . . . . . . . . 1 2 1 . 3 . . 1 1 . . . Guns 58 | . 4 . . . . . . . . . . . 1 . . 5 4 3 41 Cannons 23 | . . 1 . . 5 8 . . . . . . . . . . . . 9 AOE 23 | . . . . . . . . . . . . . 17 . . . 6 . . Classes Destroyed 19 | 2 2 . . . 6 . . . . . . 2 1 . 1 . 1 1 3 Worker 16 | . . . . . . . . . . . . . 1 . . 2 1 . 12 Builder 10 | . . . . . 1 . . . . . . . 2 . . 1 . . 6 Tunneler 4 | 4 . . . . . . . . . . . . . . . . . . . Hauler 15 | . . . . . 2 . . . . . . 4 2 . . 2 . . 5 Recycler 21 | 1 . . . . 2 . . . . . . 4 2 . . 4 2 . 6 Mechanic 3 | . . . . . . . . . . . . 2 1 . . . . . . Operator 1 | . . . . . 1 . . . . . . . . . . . . . . Watcher 6 | . . . . . 1 . . . . . . 3 . . . 1 . . 1 Swarmer 15 | . 3 . . . . . . 1 1 1 . . 9 . . . . . . Saboteur 1 | . . . . . . . . . . . . . . . . . . . 1 Grunt 53 | . 1 1 . . 1 7 . . 2 . . 6 8 . . 11 7 . 9 Brawler 2 | . . . . . . . . . . . . . . . . . 1 1 . Duelist 3 | . . . . . . . . . . . . . . . . . . 1 2 Sentry 14 | . . . . . 3 2 . 2 1 . . 1 1 . . 3 1 . . Specialist 3 | . . . . . . . . . . . . . . . 3 . . . . Hunter 16 | . . . . . 1 . . . . . . 1 2 . . . . . 12 Programmer 39 | . . . . . . . . . . . . 1 2 . . 4 5 1 26 Striker 1 | . . . . . . . . . . . . . . . . . . . 1 Executioner 1 | . . . . . . . . . . . . . . . . . . . 1 Best Kill Streak 11 | 3 3 1 . . 2 3 . 1 2 1 . 3 10 . 1 6 11 2 11 Combat Bots Only 8 | . 3 1 . . 1 3 . 1 2 1 . 2 8 . 1 4 7 2 7 Max Kills in Single Turn 5 | 1 1 1 . . 1 1 . 1 1 1 . 1 5 . 1 1 3 1 3 Gunslinging 1 | . . . . . . . . . . . . . . . . . . . 1 Exploded 4 | . . . . . . . . . . . . . 4 . . . 3 . . Melee 1 | . . . . . . . . 1 1 1 . 1 . . 1 1 . . . Uniques/NPCs Destroyed . | . . . . . . . . . . . . . . . . . . . . Combat | -11 -10 -10 -10 -9 -8 -8 -8 -8 -7 -7 -7 -6 -5 -4 -4 -3 -2 -2 -2 -------- Run | Scr Mat Min Exi Min Mat Gar Mat Gar Fac Low Low Fac Fac Fac DSF Res Res Gar Res Damage Taken 19845 | . 258 29 . . 605 446 106 302 347 47 64 644 1781 . 2336 1603 1022 1634 8621 Core 2793 | . 99 . . . 44 69 . 30 60 17 21 46 234 . 493 212 18 668 782 Absorbed by Shields 672 | . . . . . . . . 53 . . . . . . 43 100 354 122 . Reduced by Siege Mode 949 | . . . . . . . . . . . . . . . . . . . 949 Redirected to Shielding 45 | . . . . . 45 . . . . . . . . . . . . . . Regen/Repaired (Parts) 293 | . . . . . . . . . . . . 14 204 . . 75 . . . Core Remaining (%) 78 | 100 . . . 60 . . . 74 . . 86 94 76 . 57 83 . . . Volleys Fired 454 | 16 10 3 . 1 42 26 . 16 15 1 . 20 43 . . 60 28 15 158 Largest 4 | 2 2 2 . 2 2 2 . 1 1 1 . 1 2 . . 4 4 4 4 Hottest 352 | 40 40 70 . 70 70 70 . 5 5 5 . 45 170 . . 343 352 292 300 Shots Fired 1163 | 32 20 6 . 3 84 48 . 16 15 1 . 20 67 . . 226 80 52 493 Gun 874 | 32 20 . . . . . . . . . . . 52 . . 224 77 52 417 Cannon 219 | . . 6 . 3 84 46 . . . . . . 4 . . . . . 76 Launcher 11 | . . . . . . . . . . . . 1 7 . . . 3 . . Special 59 | . . . . . . 2 . 16 15 1 . 19 4 . . 2 . . . Kinetic 608 | 32 20 6 . 3 84 46 . . . . . . . . . . 9 13 395 Thermal 446 | . . . . . . . . . . . . . 52 . . 224 67 27 76 Explosive 11 | . . . . . . . . . . . . 1 7 . . . 3 . . Electromagnetic 39 | . . . . . . . . . . . . . 4 . . . 1 12 22 Robot Hit Streak 30 | 3 5 4 . 6 15 19 . 10 5 2 . 10 15 . . 26 23 19 30 Robot Miss Streak 5 | 3 3 1 . . 3 1 . 3 2 . . 2 4 . . 4 3 1 5 Penetration Max 1 | . . . . . . . . . . . . . . . . . . 1 1 Secondary Targets 15 | . 1 . . . . . . . . . . . . . . 2 1 . 11 Max Gunslinging Chain 1 | . 1 . . . . . . . . . . . . . . 1 1 . 1 Shots Hit Robots 904 | 13 10 4 . 2 54 37 . 20 16 2 . 50 57 . 8 182 60 40 349 Core Hits 431 | 6 6 2 . . 20 17 . . 1 1 . 5 69 . 1 60 67 10 166 Critical Kills 18 | . . . . . . . . . . 1 . . . . . . 1 1 15 Critical Parts Destroyed 40 | . . . . . . . . 2 . . . 5 . . 2 . . 2 29 Critical Strikes 114 | . . . . . 3 . . 2 . 1 . 5 10 . 2 30 4 4 53 Burn 44 | . . . . . . . . . . . . . 10 . . 30 3 1 . Meltdown 1 | . . . . . . . . . . . . . . . . . . . 1 Destroy 51 | . . . . . . . . . . . . . . . . . 1 3 47 Blast 3 | . . . . . 3 . . . . . . . . . . . . . . Corrupt 5 | . . . . . . . . . . . . . . . . . . . 5 Smash 10 | . . . . . . . . 2 . 1 . 5 . . 2 . . . . Melee Attacks 120 | . . . . . 8 5 . 14 8 2 1 63 9 . 9 1 . . . Impact 118 | . . . . . 8 5 . 14 8 2 1 63 9 . 8 . . . . Slashing . | . . . . . . . . . . . . . . . . . . . . Piercing 2 | . . . . . . . . . . . . . . . 1 1 . . . Sneak Attacks 30 | . . . . . . . . 8 5 . . 15 . . 1 1 . . . Combat Hostiles 13 | . . . . . . . . 5 4 . . 2 . . 1 1 . . . Follow-up Attacks 1 | . . . . . . . . . . . . . . . 1 . . . . Damage Inflicted 28054 | 144 116 88 . 48 937 695 . 571 310 62 . 2713 3048 . 562 3580 2571 883 11726 Guns 16227 | 144 112 . . . . . . . . . . . 810 . . 3477 1402 883 9399 Cannons 4053 | . . 88 . 34 928 569 . . . . . . 122 . . . . . 2312 Explosions 2967 | . . . . . . . . . . . . . 1833 . . . 1134 . . Melee 4727 | . . . . . . 126 . 571 310 62 . 2713 283 . 562 100 . . . Ramming 80 | . 4 . . 14 9 . . . . . . . . . . 3 35 . 15 Kinetic 11254 | 144 112 88 . 34 928 569 . . . . . . . . . . 188 291 8900 Thermal 8424 | . . . . . . . . . . . . . 965 . . 3477 1214 456 2312 Explosive 2812 | . . . . . . . . . . . . . 1678 . . . 1134 . . Electromagnetic 757 | . . . . . . . . . . . . . 122 . . . . 136 499 Impact 4570 | . . . . . . 126 . 571 310 62 . 2713 283 . 505 . . . . Slashing . | . . . . . . . . . . . . . . . . . . . . Piercing 157 | . . . . . . . . . . . . . . . 57 100 . . . Highest Corruption 77 | . 4 4 4 4 . . . . 1 1 1 3 5 . 2 1 9 16 77 Average Corruption 18 | . 3 4 4 4 . . . . 1 1 1 2 4 . 1 1 7 10 50 Corruption Purged 3 | . . . . . . . . . . . . 3 . . . . . . . Corruption Blocked 15 | . . . . . . . . . . 15 . . . . . . . . . Effects 254 | . 2 1 26 4 . . . . 1 2 5 5 9 . 4 3 6 15 171 Message Errors 43 | . 1 . 3 2 . . . . . 2 1 2 2 . 1 . . 2 27 Matter Fused 51 | . . . 6 . . . . . . . 1 2 5 . 1 2 . 5 29 Heat Flow Errors 18 | . 1 . 5 . . . . . 1 . . 1 . . 1 . 1 3 5 Energy Discharges 31 | . . . 6 . . . . . . . 2 . 2 . . . 2 1 18 Parts Rejected 3 | . . . . . . . . . . . . . . . . . 1 . 2 Data Loss (minor) 24 | . . . 4 1 . . . . . . 1 . . . 1 . 1 1 15 Data Loss (major) 6 | . . 1 2 . . . . . . . . . . . . . . 1 2 Misfires 7 | . . . . 1 . . . . . . . . . . . 1 1 . 4 Alerts 3 | . . . . . . . . . . . . . . . . . . . 3 Misdirections 6 | . . . . . . . . . . . . . . . . . . 1 5 Weapon Failures 62 | . . . . . . . . . . . . . . . . . . 1 61 Overload Shots . | . . . . . . . . . . . . . . . . . . . . Overflow Damage 2030 | . . . . . 3 36 . 248 135 . . 1203 126 . 208 . . . 71 Projectiles 74 | . . . . . 3 . . . . . . . . . . . . . 71 Explosions 27 | . . . . . . . . . . . . . 27 . . . . . . Melee 1929 | . . . . . . 36 . 248 135 . . 1203 99 . 208 . . . . Knockbacks 26 | . . 1 . 1 5 4 . . 2 . . 10 2 . 1 . . . . Impact 15 | . . . . . . 1 . . 2 . . 9 2 . 1 . . . . Kinetic 10 | . . 1 . 1 5 3 . . . . . . . . . . . . . Secondary 1 | . . . . . . . . . . . . 1 . . . . . . . Self-Inflicted Damage 220 | . . . . . . . . . . . . 21 199 . . . . . . Shots 10 | . . . . . . . . . . . . 1 9 . . . . . . Rammed 9 | . 2 . . 2 3 . . . . . . . . . . . . . 2 Targets Rammed 16 | . 2 . . 2 3 . . . . . . . . . . 1 5 . 3 Kicked 6 | . . . . . . . . . . . . . . . . 1 5 . . Crushed 1 | . . . . . . . . . . . . . . . . . . . 1 Highest Temperature 522 | . 277 24 274 15 25 60 . 21 175 . . 224 228 . 203 522 267 262 516 Average Temperature 90 | . 100 8 106 7 10 26 . 9 128 . . 116 96 . 115 121 86 78 117 Received Heat Transfer 2196 | . 18 15 . . 153 234 . 99 39 . . 165 180 . 16 381 137 156 603 Effects 14 | . . . . . . . . . . . . . 2 . . 1 . . 11 Shutdowns 5 | . . . . . . . . . . . . . . . . 1 . . 4 Energy Bleed 2 | . . . . . . . . . . . . . 1 . . . . . 1 Interference 3 | . . . . . . . . . . . . . 1 . . . . . 2 Matter Decay 1 | . . . . . . . . . . . . . . . . . . . 1 Damage (major) 2 | . . . . . . . . . . . . . . . . . . . 2 Damage (core) 1 | . . . . . . . . . . . . . . . . . . . 1 Siege Activations 18 | . . . . . . . . . . . . . . . . . . . 18 Total Turns 352 | . . . . . . . . . . . . . . . . . . . 352 Longest Duration 41 | . . . . . . . . . . . . . . . . . . . 41 Robots Corrupted 3 | . . . . . . . . . . . . . 1 . . . . . 2 Combat Hostiles 2 | . . . . . . . . . . . . . 1 . . . . . 1 Parts Fried 51 | . . . . . . 1 . 6 1 . . 26 5 . 1 . . . 11 Impact Corruptions 56 | . . . . . . 2 . 8 5 . . 33 4 . 4 . . . . Robots Melted 26 | . . . . . . . . . . . . . 3 . . 17 4 . 2 Combat Hostiles 18 | . . . . . . . . . . . . . 1 . . 12 4 . 1 Parts Melted 101 | . . . . . . . . . . . . . 9 . . 67 16 . 9 Heat Transferred 21002 | . . . . . . . . . . . . . 3250 . . 12287 2690 629 2146 Parts Sabotaged 2 | . . . . . . . . . . . . . . . . . . . 2 Parts Stolen . | . . . . . . . . . . . . . . . . . . . . Parts Stripped . | . . . . . . . . . . . . . . . . . . . . Power Chain Reactions . | . . . . . . . . . . . . . . . . . . . . Missiles Intercepted . | . . . . . . . . . . . . . . . . . . . . Alert | -11 -10 -10 -10 -9 -8 -8 -8 -8 -7 -7 -7 -6 -5 -4 -4 -3 -2 -2 -2 ------- Run | Scr Mat Min Exi Min Mat Gar Mat Gar Fac Low Low Fac Fac Fac DSF Res Res Gar Res Peak Influence 1123 | 25 175 24 . 10 156 372 211 408 418 . . 195 750 274 271 493 646 462 1123 Initial 327 | . 16 4 . . 3 7 181 137 214 . . 50 64 274 191 99 271 327 203 Average 286 | 12 55 22 . 6 56 200 183 328 305 . . 75 259 274 220 279 399 416 655 Maximum Alert Level 4 | . . . . . . 1 1 2 2 . . . 3 1 1 2 2 2 4 Low Security (%) 45 | 100 100 100 . 100 100 44 92 6 . . . 100 56 . 27 29 . . . Level 1 29 | . . . . . . 55 7 85 94 . . . 3 100 72 52 59 36 23 Level 2 13 | . . . . . . . . 8 5 . . . 31 . . 17 40 63 25 Level 3 9 | . . . . . . . . . . . . . 8 . . . . . 45 Level 4 1 | . . . . . . . . . . . . . . . . . . . 5 Level 5 . | . . . . . . . . . . . . . . . . . . . . High Security . | . . . . . . . . . . . . . . . . . . . . Max Security . | . . . . . . . . . . . . . . . . . . . . Squads Dispatched 31 | . 1 . . . 1 . . . 1 . . 4 7 . 2 4 1 . 10 Investigation 5 | . 1 . . . 1 . . . . . . 1 1 . . . . . 1 Extermination 11 | . . . . . . . . . . . . 2 1 . . 2 1 . 5 Reinforcement 11 | . . . . . . . . . 1 . . 1 2 . 2 2 . . 3 Assault 2 | . . . . . . . . . . . . . 1 . . . . . 1 Garrison 2 | . . . . . . . . . . . . . 2 . . . . . . Intercept . | . . . . . . . . . . . . . . . . . . . . Searches Triggered . | . . . . . . . . . . . . . . . . . . . . Construction Impeded 1 | . . . . . . . . . . . . . 1 . . . . . . Haulers Reinforced 5 | . . . . . . . . . . . . 1 1 . . 1 . . 2 Active Scanning Responses . | . . . . . . . . . . . . . . . . . . . . Cargo Convoy Interrupts 1 | . . . . . . . . . . . . . . . . . . . 1 Stealth | -11 -10 -10 -10 -9 -8 -8 -8 -8 -7 -7 -7 -6 -5 -4 -4 -3 -2 -2 -2 --------- Run | Scr Mat Min Exi Min Mat Gar Mat Gar Fac Low Low Fac Fac Fac DSF Res Res Gar Res Distress Signals 11 | . . . . . 1 . . . 2 . . 1 2 . . 2 . . 3 Communications Jammed 1 | . . . . . . . . . . . . . . . . 1 . . . Distress Signals 1 | . . . . . . . . . . . . . . . . 1 . . . Times Spotted 262 | . 4 2 . . 10 10 3 15 14 8 7 19 27 . 10 31 17 14 71 Peak Tracking Total 12 | . 3 2 . . 4 3 3 4 6 7 3 4 10 . 6 6 6 12 7 Tactical Retreats 13 | . . . . . . . . 5 . . 1 1 . . 3 1 . 2 . Traps | -11 -10 -10 -10 -9 -8 -8 -8 -8 -7 -7 -7 -6 -5 -4 -4 -3 -2 -2 -2 ------- Run | Scr Mat Min Exi Min Mat Gar Mat Gar Fac Low Low Fac Fac Fac DSF Res Res Gar Res Traps Triggered 19 | . 4 . . . . 4 . 5 . . . 1 . . 2 . . 1 2 Indirectly . | . . . . . . . . . . . . . . . . . . . . Trap Hack Attempts . | . . . . . . . . . . . . . . . . . . . . Triggered . | . . . . . . . . . . . . . . . . . . . . Disarmed . | . . . . . . . . . . . . . . . . . . . . Reprogrammed . | . . . . . . . . . . . . . . . . . . . . Reused . | . . . . . . . . . . . . . . . . . . . . Traps Extracted . | . . . . . . . . . . . . . . . . . . . . Installed . | . . . . . . . . . . . . . . . . . . . . Triggered 3 | . . . . 1 . . . . . 1 1 . . . . . . . . Machines | -11 -10 -10 -10 -9 -8 -8 -8 -8 -7 -7 -7 -6 -5 -4 -4 -3 -2 -2 -2 ---------- Run | Scr Mat Min Exi Min Mat Gar Mat Gar Fac Low Low Fac Fac Fac DSF Res Res Gar Res Machines Disabled 19 | . . . . . . 2 . 1 1 . 1 2 8 . . . . 1 3 Max in Single Turn 5 | . . . . . . 1 . 1 1 . 1 2 5 . . . . 1 1 Garrison Access 1 | . . . . . . . . . . . . . . . . . . . 1 Garrison Relay 4 | . . . . . . 2 . 1 . . . . . . . . . 1 . Machines Sabotaged . | . . . . . . . . . . . . . . . . . . . . Garrisons Compromised . | . . . . . . . . . . . . . . . . . . . . Overloaded Fab Kills . | . . . . . . . . . . . . . . . . . . . . Hacking | -11 -10 -10 -10 -9 -8 -8 -8 -8 -7 -7 -7 -6 -5 -4 -4 -3 -2 -2 -2 --------- Run | Scr Mat Min Exi Min Mat Gar Mat Gar Fac Low Low Fac Fac Fac DSF Res Res Gar Res Machines Accessed 44 | . 7 . 2 . 5 . 1 . 4 . 2 8 4 1 . 2 5 . 3 Terminals 17 | . 6 . . . 4 . . . 1 . . 1 1 1 . 1 1 . 1 Fabricators 4 | . . . . . . . . . 1 . . . 1 . . . 1 . 1 Repair Stations 4 | . . . . . . . . . . . . 2 1 . . 1 . . . Recycling Units 9 | . 1 . . . . . . . 2 . . 3 1 . . . 2 . . Scanalyzers 2 | . . . . . . . . . . . . 2 . . . . . . . Garrison Access 4 | . . . . . 1 . 1 . . . . . . . . . 1 . 1 Total Hacks 121 | . 18 . 2 . 15 . 1 . 6 . 5 31 22 2 . 9 7 . 3 Successful 71 | . 8 . 2 . 7 . 1 . 4 . 5 21 14 1 . 4 3 . 1 Failed 50 | . 10 . . . 8 . . . 2 . . 10 8 1 . 5 4 . 2 Catastrophic 7 | . 1 . . . 1 . . . 1 . . 1 . . . . 3 . . Database Lockouts . | . . . . . . . . . . . . . . . . . . . . Manual 35 | . 15 . 1 . 6 . . . 2 . 1 5 4 . . . . . 1 Terminals 62 | . 17 . . . 14 . . . 1 . . 11 9 2 . 6 1 . 1 Fabricators 8 | . . . . . . . . . 2 . . . 2 . . . 3 . 1 Repair Stations 13 | . . . . . . . . . . . . 4 6 . . 3 . . . Recycling Units 15 | . 1 . . . . . . . 3 . . 4 5 . . . 2 . . Scanalyzers 12 | . . . . . . . . . . . . 12 . . . . . . . Garrison Access 4 | . . . . . 1 . 1 . . . . . . . . . 1 . 1 Terminal Hacks 29 | . 6 . 2 . 5 . . . 1 . 5 4 3 1 . 2 . . . Record 5 | . . . 1 . . . . . . . 4 . . . . . . . . Robot Schematic 1 | . 1 . . . . . . . . . . . . . . . . . . Robot Analysis 3 | . 2 . . . . . . . . . . . 1 . . . . . . Prototype ID Bank 4 | . 1 . . . 2 . . . . . . . 1 . . . . . . Open Door 1 | . . . . . . . . . . . 1 . . . . . . . . Open DSF 1 | . . . . . . . . . . . . . . 1 . . . . . Level Access Points 1 | . . . . . . . . . . . . 1 . . . . . . . Branch Access Points 1 | . . . . . 1 . . . . . . . . . . . . . . Terminal Index 2 | . 1 . . . . . . . . . . 1 . . . . . . . Fabricator Index 1 | . . . . . . . . . . . . 1 . . . . . . . Unreport Threat 1 | . . . . . . . . . . . . . 1 . . . . . . Locate Traps 2 | . . . . . 1 . . . . . . . . . . 1 . . . Hauler Manifests 4 | . 1 . . . 1 . . . 1 . . 1 . . . . . . . Registered Components 1 | . . . . . . . . . . . . . . . . 1 . . . EX-Prototype ID Bank 1 | . . . 1 . . . . . . . . . . . . . . . . Fabricator Hacks 3 | . . . . . . . . . . . . . 2 . . . 1 . . Load Schematic 2 | . . . . . . . . . . . . . 1 . . . 1 . . Build 1 | . . . . . . . . . . . . . 1 . . . . . . Repair Station Hacks 9 | . . . . . . . . . . . . 3 4 . . 2 . . . Scan Component 4 | . . . . . . . . . . . . 1 2 . . 1 . . . Repair 4 | . . . . . . . . . . . . 1 2 . . 1 . . . Refit 1 | . . . . . . . . . . . . 1 . . . . . . . Recycling Unit Hacks 7 | . . . . . . . . . 3 . . 2 1 . . . 1 . . Report Inventory 2 | . . . . . . . . . 2 . . . . . . . . . . Retrieve Components 5 | . . . . . . . . . 1 . . 2 1 . . . 1 . . Scanalyzer 11 | . . . . . . . . . . . . 11 . . . . . . . Insert Component 5 | . . . . . . . . . . . . 5 . . . . . . . Analyze 6 | . . . . . . . . . . . . 6 . . . . . . . Garrison Access Hacks 4 | . . . . . 1 . 1 . . . . . . . . . 1 . 1 Unlock Access 3 | . . . . . 1 . 1 . . . . . . . . . 1 . . Seal Access 1 | . . . . . . . . . . . . . . . . . . . 1 Unauthorized Hacks 8 | . 2 . . . 1 . . . . . . 1 4 . . . . . . Terminals 3 | . 1 . . . 1 . . . . . . 1 . . . . . . . Operators 3 | . 1 . . . 1 . . . . . . 1 . . . . . . . Fabricators . | . . . . . . . . . . . . . . . . . . . . Repair Stations . | . . . . . . . . . . . . . . . . . . . . Recycling Units 5 | . 1 . . . . . . . . . . . 4 . . . . . . Monitor 1 | . . . . . . . . . . . . . 1 . . . . . . Reject 1 | . . . . . . . . . . . . . 1 . . . . . . Recyclers 1 | . . . . . . . . . . . . . 1 . . . . . . Mask 1 | . . . . . . . . . . . . . 1 . . . . . . Tunnel 1 | . 1 . . . . . . . . . . . . . . . . . . Scanalyzers . | . . . . . . . . . . . . . . . . . . . . Garrison Access . | . . . . . . . . . . . . . . . . . . . . Data Cores Recovered 1 | . . . . . 1 . . . . . . . . . . . . . . Used . | . . . . . . . . . . . . . . . . . . . . Hacking Detections 27 | . 6 . . . 4 . . . 2 . . 5 3 . . 1 4 . 2 Full Trace Events 2 | . . . . . 1 . . . . . . . 1 . . . . . . Feedback Events . | . . . . . . . . . . . . . . . . . . . . Feedback Blocked . | . . . . . . . . . . . . . . . . . . . . Robot Schematics Acquired 1 | . 1 . . . . . . . . . . . . . . . . . . Robots Built . | . . . . . . . . . . . . . . . . . . . . Authchips . | . . . . . . . . . . . . . . . . . . . . Time . | . . . . . . . . . . . . . . . . . . . . Total Robot Build Rating . | . . . . . . . . . . . . . . . . . . . . Part Schematics Acquired 5 | . . . . . . . . . . . . 5 . . . . . . . Parts Built 2 | . . . . . . . . . . . . . 2 . . . . . . Authchips . | . . . . . . . . . . . . . . . . . . . . Time 47 | . . . . . . . . . . . . . 47 . . . . . . Total Part Build Rating 10 | . . . . . . . . . . . . . 10 . . . . . . Parts Repaired 4 | . . . . . . . . . . . . 1 2 . . 1 . . . Time 186 | . . . . . . . . . . . . 78 88 . . 20 . . . Parts Recycled . | . . . . . . . . . . . . . . . . . . . . Recycled Matter . | . . . . . . . . . . . . . . . . . . . . Retrieved Matter . | . . . . . . . . . . . . . . . . . . . . Retrieved Components 11 | . . . . . . . . . 3 . . 3 2 . . . 3 . . Parts Scanalyzed 5 | . . . . . . . . . . . . 5 . . . . . . . Part Schematics Acquired 5 | . . . . . . . . . . . . 5 . . . . . . . Parts Damaged 1 | . . . . . . . . . . . . 1 . . . . . . . Bothacking | -11 -10 -10 -10 -9 -8 -8 -8 -8 -7 -7 -7 -6 -5 -4 -4 -3 -2 -2 -2 ------------ Run | Scr Mat Min Exi Min Mat Gar Mat Gar Fac Low Low Fac Fac Fac DSF Res Res Gar Res Used RIF Installer 3 | . . . . . . 1 . 1 . . . . . . . . . 1 . Hotswap 1 | . . . . . . . . . . . . . . . . . . 1 . Program Shield 1 | . . . . . . . . 1 . . . . . . . . . . . Robots Hacked 21 | . . . . . . 1 . 4 8 1 . 5 1 . . 1 . . . Non-combat 4 | . . . . . . . . . 3 1 . . . . . . . . . Combat 17 | . . . . . . 1 . 4 5 . . 5 1 . . 1 . . . Robot Hacks Applied 26 | . . . . . . 1 . 8 9 1 . 5 1 . . 1 . . . parse_system 1 | . . . . . . . . . . 1 . . . . . . . . . find_recycling 1 | . . . . . . . . . 1 . . . . . . . . . . find_terminals 1 | . . . . . . . . . 1 . . . . . . . . . . map_route 1 | . . . . . . . . . 1 . . . . . . . . . . find_shortcuts 1 | . . . . . . . . 1 . . . . . . . . . . . mark_system 1 | . . . . . . . . 1 . . . . . . . . . . . spike_heat 2 | . . . . . . . . 2 . . . . . . . . . . . overload_power 3 | . . . . . . . . 1 1 . . 1 . . . . . . . reboot_system 7 | . . . . . . . . 2 2 . . 2 . . . 1 . . . overwrite_iff 7 | . . . . . . 1 . 1 2 . . 2 1 . . . . . . formatsys_low 1 | . . . . . . . . . 1 . . . . . . . . . . Relay Couplers Released 21 | . . . . . . 10 . 4 . . . . . . . . . 4 3 Machine Destruction 18 | . . . . . . 10 . 4 . . . . . . . . . 4 . Programmers 3 | . . . . . . . . . . . . . . . . . . . 3 Attached 11 | . . . . . . 2 . 2 2 . . 2 1 . . 1 . . 1 Fabnet Peak Effective % . | . . . . . . . . . . . . . . . . . . . . Robots Rewired 3 | . . . . . . . . . . . . 3 . . . . . . . Allies Hacked . | . . . . . . . . . . . . . . . . . . . . Hacks Repelled 1 | . . . . . . . . . . . 1 . . . . . . . . Allies | -11 -10 -10 -10 -9 -8 -8 -8 -8 -7 -7 -7 -6 -5 -4 -4 -3 -2 -2 -2 -------- Run | Scr Mat Min Exi Min Mat Gar Mat Gar Fac Low Low Fac Fac Fac DSF Res Res Gar Res Total Allies 11 | . . . . . . 1 . 1 3 . . 5 1 . . . . . . Largest Group 4 | . . . . . . 1 . 1 2 . . 4 1 . . . . . . Highest-Rated Group 127 | . . . . . . 16 . 15 42 . . 127 41 . . . . . . Highest-Rated Ally 41 | . . . . . . 16 . 15 26 . . 40 41 . . . . . . Total Orders . | . . . . . . . . . . . . . . . . . . . . Ally Attacks 29 | . . . . . . 3 . 1 4 . . 19 2 . . . . . . Total Damage 489 | . . . . . . 45 . 30 30 . . 295 89 . . . . . . Kills 2 | . . . . . . . . 1 . . . 1 . . . . . . . Allies Corrupted 1 | . . . . . . . . . . . . 1 . . . . . . . Allies Melted . | . . . . . . . . . . . . . . . . . . . . Intel | -11 -10 -10 -10 -9 -8 -8 -8 -8 -7 -7 -7 -6 -5 -4 -4 -3 -2 -2 -2 ------- Run | Scr Mat Min Exi Min Mat Gar Mat Gar Fac Low Low Fac Fac Fac DSF Res Res Gar Res Robot Analysis Total 3 | . 2 . . . . . . . . . . . 1 . . . . . . Derelict Logs Recovered 4 | . . 1 . . . . . . . 2 1 . . . . . . . . Drone Launches . | . . . . . . . . . . . . . . . . . . . . Drone Recoveries . | . . . . . . . . . . . . . . . . . . . . Exploration | -11 -10 -10 -10 -9 -8 -8 -8 -8 -7 -7 -7 -6 -5 -4 -4 -3 -2 -2 -2 ------------- Run | Scr Mat Min Exi Min Mat Gar Mat Gar Fac Low Low Fac Fac Fac DSF Res Res Gar Res Turns Passed 11637 | 110 596 92 1204 135 1001 805 28 681 353 451 361 1295 714 4 311 758 493 295 1950 Spaces Moved 8172 | 49 346 75 682 54 409 599 46 544 591 697 487 1490 353 4 160 410 255 156 765 Core 147 | . . . . . . . . . . . . . . . . . . 46 101 Treads 2269 | . 311 . 566 54 409 265 . . . . . . . . . . . . 664 Legs 1681 | 49 27 . . . . . . . . . . 313 353 4 160 410 255 110 . Wheels 200 | . 8 75 116 . . 1 . . . . . . . . . . . . . Hover . | . . . . . . . . . . . . . . . . . . . . Flight 3875 | . . . . . . 333 46 544 591 697 487 1177 . . . . . . . Fastest Speed 50 | 120 105 90 90 240 160 50 50 50 50 50 50 50 120 120 90 90 90 50 50 Average Speed 97 | 120 155 104 174 240 160 98 50 50 50 50 50 64 120 120 126 90 121 99 144 Slowest Speed 260 | 120 160 105 240 240 160 160 50 50 50 150 50 260 120 120 190 180 190 120 170 Overloaded Moves . | . . . . . . . . . . . . . . . . . . . . Propulsion Burnouts . | . . . . . . . . . . . . . . . . . . . . Robots Hopped 11 | . . . . . . . . 1 1 1 . 8 . . . . . . . Cave-ins Triggered . | . . . . . . . . . . . . . . . . . . . . Exploration Rate (%) 37 | 5 74 34 89 24 36 46 7 62 15 71 34 33 10 . 95 12 11 34 18 Regions Visited 19 Branch Regions 5 Pre-discovered Areas 4 | . 1 . 1 . . . . . . 1 1 . . . . . . . . Known Exits Taken 9 | . . . . . 1 . 1 . . 1 1 1 1 1 . 1 1 . . Unknown Exits Taken 6 | 1 1 1 1 1 . . . . 1 . . . . . . . . . . Scrap Searched 12 | . . 1 . . . . . . . 10 1 . . . . . . . . Spaces Dug 80 | . . . . . 6 . . 5 2 1 . 49 17 . . . . . . Terrain Destroyed 297 | . . . . . 6 . . 5 2 1 . 49 154 . . . 30 2 48 Melee 32 | . . . . . 6 . . 5 2 1 . 16 2 . . . . . . Projectile 47 | . . . . . . . . . . . . . . . . . 2 2 43 AOE 213 | . . . . . . . . . . . . 33 152 . . . 28 . . Terrain Rammed . | . . . . . . . . . . . . . . . . . . . . Walls Destroyed . | . . . . . . . . . . . . . . . . . . . . Machines Disabled . | . . . . . . . . . . . . . . . . . . . . Actions | -11 -10 -10 -10 -9 -8 -8 -8 -8 -7 -7 -7 -6 -5 -4 -4 -3 -2 -2 -2 --------- Run | Scr Mat Min Exi Min Mat Gar Mat Gar Fac Low Low Fac Fac Fac DSF Res Res Gar Res Total 10757 | 72 383 86 700 56 658 760 52 919 625 793 603 1712 551 3 253 651 378 263 1239 Wait 1223 | . 4 . . . 150 38 . 246 2 83 108 81 109 . 53 111 34 64 140 Move 8136 | 48 345 74 681 53 409 598 46 541 588 694 486 1476 352 3 159 409 254 155 765 Hop 8 | . . . . . . . . 1 1 1 . 5 . . . . . . . Pick Up 170 | 3 11 2 7 . 10 11 3 4 4 3 2 18 7 . 7 16 15 7 40 Fast Attach 115 | 1 . . . . 8 4 . . . 3 1 8 5 . 12 13 8 3 49 Attach 87 | . 2 . 5 . 3 5 . 3 5 2 2 9 6 . 2 11 13 2 17 Detach 17 | . . 2 . . . 1 . 1 1 . . 3 . . . 2 3 . 4 Swap 94 | 1 5 1 3 . 8 1 . 7 1 . . 8 15 . 2 10 7 1 24 Drop 167 | 3 4 4 4 . 17 14 3 6 . 4 3 21 5 . 5 17 11 7 39 Fire 454 | 16 10 3 . 1 42 26 . 16 15 1 . 20 43 . . 60 28 15 158 Melee 119 | . . . . . 8 5 . 14 8 2 1 63 9 . 8 1 . . . Ram . | . . . . . . . . . . . . . . . . . . . . Kick 6 | . . . . . . . . . . . . . . . . 1 5 . . Crush 10 | . 2 . . 2 3 . . . . . . . . . . . . . 3 Escape Stasis 151 | . . . . . . 57 . 80 . . . . . . 5 . . 9 . Rewire . | . . . . . . . . . . . . . . . . . . . . Trap . | . . . . . . . . . . . . . . . . . . . . Miscellaneous . | . . . . . . . . . . . . . . . . . . . . Route ------- -11/Scrapyard -10/Materials (discovered 4 exits: [*Mat x2] / [*Min x2]) -10/Mines (discovered 2 exits: [*Mat] / *Exi) -10/Exiles -9/Mines -8/Materials -8/Garrison (discovered 2 exits: *Mat x2) -8/Materials -8/Garrison (discovered 2 exits: *Fac x2) -7/Factory -7/Lower Caves -7/Lower Caves -6/Factory (discovered 5 exits: *Fac x4 / *Low) -5/Factory -4/Factory -4/DSF -3/Research (discovered 2 exits: *Res x2) -2/Research -2/Garrison -2/Research History --------- Turn | Location | Event 17 | -11/Scrapyard | Discovered new exit (range 3) 111 | -11/Scrapyard | Entered Materials 223 | -10/Materials | Discovered new exit (range 9) 227 | -10/Materials | Met 8R-AWN 285 | -10/Materials | Discovered new exit (range 3) 301 | -10/Materials | Build established: Mutant 355 | -10/Materials | Discovered new exit (range 9) 537 | -10/Materials | Discovered new exit (range 11) 707 | -10/Materials | Entered Mines 710 | -10/Mines | Followed 8R-AWN into the Mines 750 | -10/Mines | Learned Materials stockpile data 753 | -10/Mines | Discovered new exit (range 6) 793 | -10/Mines | Discovered new exit (range 5) 799 | -10/Mines | Entered Exiles 820 | -10/Exiles | Welcomed by 8R-AWN 837 | -10/Exiles | Met EX-HEX 866 | -10/Exiles | Met EX-BIN 877 | -10/Exiles | Aligned with FarCom system 878 | -10/Exiles | Given EX-Vault access code 900 | -10/Exiles | Opened EX-Vault 915 | -10/Exiles | Found Flying Fortress v7 919 | -10/Exiles | Found Modified TNC 960 | -10/Exiles | Warned to stay clear of 0b10 Research branches 1005 | -10/Exiles | Met EX-DEC 1012 | -10/Exiles | Learned location of Zion (-7) 1077 | -10/Exiles | Visited The Gauntlet 1285 | -10/Exiles | Learned about 8R-AWN's background 1678 | -10/Exiles | Found Supersonic Drone Bay 1973 | -10/Exiles | Discovered new exit (range 14) 2003 | -10/Exiles | Stole three prototypes: Flying Fortress v7, Modified TNC, Supersonic Drone Bay 2003 | -10/Exiles | Entered Mines 2119 | -9/Mines | Discovered new exit (range 8) 2138 | -9/Mines | Entered Materials 2138 | -8/Materials | Evolved 4 slots: Propulsion x2, Utility x2 2453 | -8/Materials | Build established: Skirmisher 2937 | -8/Materials | Build established: Hacker-Mutant 3139 | -8/Materials | Identified exit to Garrison 3139 | -8/Materials | Entered Garrison 3254 | -8/Garrison | Triggered checkpoint 3369 | -8/Garrison | Triggered checkpoint 3505 | -8/Garrison | Discovered new exit (range 12) 3532 | -8/Garrison | Installed Relay Interface Framework 3650 | -8/Garrison | Triggered checkpoint 3658 | -8/Garrison | Garrison Relay disabled 3789 | -8/Garrison | Discovered new exit (range 10) 3840 | -8/Garrison | Triggered checkpoint 3866 | -8/Garrison | Triggered checkpoint 3870 | -8/Garrison | Garrison Relay disabled 3944 | -8/Garrison | Entered Materials 3972 | -8/Materials | Identified exit to Garrison 3972 | -8/Materials | Entered Garrison 3990 | -8/Garrison | Triggered checkpoint 4017 | -8/Garrison | Garrison Relay disabled 4018 | -8/Garrison | Build established: Bothacker-Mutant 4273 | -8/Garrison | Discovered new exit (range 8) 4410 | -8/Garrison | Triggered checkpoint 4644 | -8/Garrison | Discovered new exit (range 8) 4651 | -8/Garrison | Expanded RIF knowledge: Program Shield 4653 | -8/Garrison | Entered Factory 4653 | -7/Factory | Evolved 2 slots: Utility x2 4655 | -7/Factory | FarCom data flow suspended 4797 | -7/Factory | Discovered new exit (range 14) 5006 | -7/Factory | Entered Lower Caves 5173 | -7/Lower Caves | Learned Factory emergency access door positions 5356 | -7/Lower Caves | Attacked by a faux Warlord 5421 | -7/Lower Caves | Discovered new exit (range 6) 5438 | -7/Lower Caves | Found Alien Artifact 5438 | -7/Lower Caves | Identified Core Expander 5438 | -7/Lower Caves | Installed Core Expander, added new Power slot 5456 | -7/Lower Caves | Identified exit to Lower Caves 5457 | -7/Lower Caves | Entered another Lower Caves area 5463 | -7/Lower Caves | Acquired the password to a Derelict Tinkerer's latest research 5470 | -7/Lower Caves | Found Prototype Special Weapon 5513 | -7/Lower Caves | Encountered a Warlord checkpoint 5557 | -7/Lower Caves | Learned location of 1 exit from Research 5557 | -7/Lower Caves | Learned Research trap positions 5557 | -7/Lower Caves | Learned Armory trap positions 5557 | -7/Lower Caves | Learned Armory stockpile data 5732 | -7/Lower Caves | Caught by Unaware searching for contraband prototypes 5816 | -7/Lower Caves | Discovered new exit (range 5) 5818 | -7/Lower Caves | Identified exit to Factory 5818 | -7/Lower Caves | Entered Factory 5818 | -6/Factory | Evolved 2 slots: Utility x2 5832 | -6/Factory | Discovered new exit (range 15) 5839 | -6/Factory | Identified exit to Lower Caves 5852 | -6/Factory | Identified exit to Factory 6310 | -6/Factory | Found Prototype Launcher 6310 | -6/Factory | Identified Rocket Array 6358 | -6/Factory | Repaired Corrupted Adv. Cooling System? 6746 | -6/Factory | Lost 4 parts (2p1u1w) 7004 | -6/Factory | Build established: Hacker-Mutant 7113 | -6/Factory | Entered another Factory area 7113 | -5/Factory | Evolved 2 slots: Propulsion x1, Utility x1 7265 | -5/Factory | Repaired Hvy. Flail 7316 | -5/Factory | Repaired Arm. Leg 7567 | -5/Factory | Destroyed 8 combat bots 7713 | -5/Factory | First assault squad dispatched 7723 | -5/Factory | Garrison activated, responded to threat 7775 | -5/Factory | Destroyed 7 combat bots 7792 | -5/Factory | Discovered new exit (range 5) 7795 | -5/Factory | Identified exit to Factory 7814 | -5/Factory | Fabricated Thermic Laser? 7827 | -5/Factory | Entered another Factory area 7827 | -4/Factory | Evolved 2 slots: Weapon x2 7830 | -4/Factory | Identified exit to DSF 7831 | -4/Factory | Entered DSF 7865 | -4/DSF | Additional patrols routed to DSF 8109 | -4/DSF | Lost 10 parts (4n3u3w) 8132 | -4/DSF | Discovered new exit (range 11) 8141 | -4/DSF | Identified exit to Research 8142 | -4/DSF | Entered Research 8142 | -3/Research | Evolved 2 slots: Utility x2 8143 | -3/Research | Identified exit to Research 8144 | -3/Research | Loaded intel: 94 trap records 8309 | -3/Research | Repaired Adv. VSS Leg 8425 | -3/Research | Found Prototype Device 8426 | -3/Research | Identified Exp. Thermal Shield 8724 | -3/Research | Build established: Hacker-Tank 8778 | -3/Research | Discovered exit to Research (range 16) 8820 | -3/Research | Found Prototype Device 8820 | -3/Research | Identified Exp. Thermal Defense Suite 8900 | -3/Research | Entered another Research area 8900 | -2/Research | Evolved 2 slots: Power x1, Utility x1 8981 | -2/Research | Lost 7 parts (2p3n2u) 9069 | -2/Research | Found Prototype Device 9069 | -2/Research | Identified Exp. Terrain Scanner 9144 | -2/Research | Found Prototype Processor 9144 | -2/Research | Identified Spectral Analyzer 9256 | -2/Research | Build established: Scavenger-Gunner 9268 | -2/Research | Destroyed 7 combat bots 9274 | -2/Research | Lost 4 parts (1p1u2w) 9371 | -2/Research | Found Prototype Reactor 9386 | -2/Research | Identified exit to Garrison 9393 | -2/Research | Entered Garrison 9420 | -2/Garrison | Triggered checkpoint 9421 | -2/Garrison | Garrison Relay disabled 9450 | -2/Garrison | System corruption reached 10% 9559 | -2/Garrison | Identified Vortex Chain Reactor 9626 | -2/Garrison | Spotted B-90 Cyclops 9646 | -2/Garrison | Triggered checkpoint 9657 | -2/Garrison | Released all parts (8) 9680 | -2/Garrison | Discovered new exit (range 8) 9686 | -2/Garrison | Expanded RIF knowledge: Hotswap 9687 | -2/Garrison | Lost 16 parts (3p4n5u4w) 9688 | -2/Garrison | Entered Research 9756 | -2/Research | Found Prototype Processor 9756 | -2/Research | Identified Exp. Core Analyzer 9850 | -2/Research | Core integrity fell below 50% 10039 | -2/Research | Destroyed 7 combat bots 10224 | -2/Research | System corruption reached 30% 10387 | -2/Research | Found Unknown Launcher 10387 | -2/Research | Identified Gamma Bomb Array 10424 | -2/Research | Cargo convoy interrupted 10426 | -2/Research | Spotted Executioner 10426 | -2/Research | Spotted Striker 10431 | -2/Research | Destroyed Striker 10440 | -2/Research | Destroyed Executioner 10443 | -2/Research | Core integrity fell below 20% 10493 | -2/Research | Found Corrupted Exp. Core Analyzer 10507 | -2/Research | Destroyed 7 combat bots 10507 | -2/Research | Found Prototype Device 10507 | -2/Research | Identified Adv. Kinecellerator 10526 | -2/Research | Found Prototype Device 10527 | -2/Research | Identified Exp. ECM Suite 10598 | -2/Research | Lost 5 parts (1p1n2u1w) 10717 | -2/Research | Lost 5 parts (1p1n1u2w) 10729 | -2/Research | Destroyed 7 combat bots 10964 | -2/Research | First assault squad dispatched 11598 | -2/Research | Spotted B-90 Cyclops 11638 | -2/Research | Destroyed by B-90 Cyclops with Nova Cannon Last Messages --------------- 11620_ Helical Railgun destroyed. 11623_ System corrupted: KE Penetrator jammed. 11623_ Slug penetrates B-90 Cyclops. 11627_ System corrupted: KE Penetrator jammed. 11627_ Slug penetrates B-90 Cyclops. 11627_ B-90 Cyclops suffers critical hit (Destroy). 11627_ Slug penetrates B-90 Cyclops. 11627_ B-90 Cyclops suffers critical hit (Destroy). 11627_ Slug penetrates B-90 Cyclops. 11630_ System corrupted: KE Penetrator jammed. 11630_ Slug penetrates B-90 Cyclops. 11630_ B-90 Cyclops suffers critical hit (Destroy). 11633_ System corrupted: Energy discharge (-92). 11634_ System corrupted: KE Penetrator jammed. 11634_ Slug penetrates B-90 Cyclops. 11635_ Lgt. Antimatter Reactor destroyed. 11635_ Adv. Heavy Treads destroyed. 11637_ System corrupted: KE Penetrator jammed. 11637_ Slug penetrates B-90 Cyclops. 11637_ Slug penetrates Wall. Map ----- +----------------------------------------------------+ | ?????????????????????????????????????????????????? | | ?????????????????????????????????????????????????? | | ?????????????????????????????????????????????????? | | ?????????????????????????????????????????????????? | | ?????????????????????????????????????????????????? | | ?????????????????????????????????????????????????? | | ?????????????????????????????????????????????????? | | ?????????????????????????????????????????????????? | | ?????????????????????????????????????????????????? | | ?????????????????????????? ??????????????????????? | | ????????????????????????? ????????????????????? | | ????????????????????????? "??? ????????????????? | | ????????????????????????? """ ???????????????? | | ????????????????????????? """ ????????????????? | | ?????????????????????????BB ?????????????????? | | ?????????????????????????BB ??????????????????? | | ????????????????????????# ???????????????????? | | ????????????????????????; #???????????????????? | | ???????????????????????## #???????????????????? | | ??????????????????????? # #???????????????????? | | ?????????????????#######; #???????????????????? | | ###########??????# #???????????????????? | | [] #??????# #???????????????????? | | ]] #??????# ##??????????????????? | | ######## ;#??????????????????? | | # ###@;;##???????????????????? | | # # ???????????????? | | # # #?????????????? | | """ # "" # #?????????????? | | """" + ""T"" # #?????????????? | | """" # "" "" # #?????????????? | | """ + #####;########?????????????? | | # # ????????????????????? | | # # *??#?????????????????? | | ######+#### # #?????????????????? | | ?# "" # #?????????????????? | | # """ # """ #?????????????????? | | " # """ # """ #?????????????????? | | + """ # """ #?????????????????? | | " # "" # ???????????????????? | | # "" # ?????##??????????????? | | * ?# "" ###+######T ######?????????? | | ##?# ?????????? | | ???# |! % ????????? | | ???# |%! ????????? | | ??## ] %% ????????? | | ???############### %###+#############??????????? | | ?????????????????# %# ?????????????????????? | | ?????????????????#% # ?????????????????? | | ????############## %% # [ ?????????????????? | +----------------------------------------------------+ Best States ------------- Heat Dissipation 139 Energy Generation 67 Energy Capacity 1570 Matter Stores 300 Matter Capacity 300 Sight Range 24 Robot Scan Range 18 Terrain Scan Range 30 Terrain Scan Density 10 Jamming Range 14 Power Amplification 20 Additional Mass Support 9 Armor Coverage 150 Resistance: KI 20 Resistance: TH 30 Weapon Shielding 33 Phase Shifting 15 Evasion (%) 65 Targeting Accuracy 24 Melee Accuracy 8 Target Analysis 12 Core Analysis 8 Recoil Reduction 5 Kinecelleration 50 Force Boost 20 Offensive Hacking 34 Defensive Hacking 20 Relay Coupler Types 3 Relay Coupler Value 45 Item Schematics ----------------- Cld. Cesium-ion Thruster | -6/Factory | Scanalyzed Thermic Laser | -6/Factory | Scanalyzed Arm. Leg | -6/Factory | Scanalyzed Hacking Suite | -6/Factory | Scanalyzed System Shield | -6/Factory | Scanalyzed Robot Schematics ------------------ M-13 Machinist | -10/Materials | Hacked Fabricated ------------ Thermic Laser | x2 | -5/Factory Alien Tech Used ----------------- Core Expander Achievements -------------- Error 47 Challenges ------------ None Game ------ Seed GhostLauncherWeb Manual? 0 Play Time 02:32:48 Cumulative 362.7 hours Start 2022.04.10 @ 19:57:33 End 2022.04.10 @ 22:32:26 Sessions 1 Manual Loads 0 Difficulty Rogue Special Mode None Game No. 189 Rogue 189 Adventurer 0 Explorer 0 Win Type - Total 11 Types 6/0/3/2/0/0/0/0/0 Lore% 81 Gallery% 84 Achievement% 68 Wizard Run 0 Options --------- ASCII 0 Keyboard 0 Movement Numpad Keybinds 0 Fullscreen 1 Font 18/SmallcapsGlow Map View 76x50 Tactical HUD 1 Map Filters NONE Filters NONE Steam 1 RUN: 1007f3ef-6b16-4018-bdbc-4d06efc46e4c